fUSD/lending_fUSD_20260108
["ID","MTS","AMOUNT","RATE_DAILY","PERIOD"]
[400959449,1767872869895,331.68611442,0.000226,120]
[400959450,1767872889959,-165.76188916,0.00010359,2]
[400959451,1767872890074,-211.06758368,0.00010359,2]
[400959452,1767872890102,-150.0,0.00010359,2]
[400959453,1767872890130,-150.0,0.00010359,2]
[400959454,1767872890158,-150.0,0.00010359,2]
[400959455,1767872890185,-150.0,0.00010359,2]
[400959456,1767872890213,-150.0,0.00010359,2]
[400959457,1767872890240,-150.0,0.00010414,2]
[400959458,1767872890268,-150.0,0.00010414,2]
[400959459,1767872890296,-150.0,0.00010414,2]
[400959460,1767872890326,-165.76188916,0.00010468,2]
[400959461,1767872890355,-150.0,0.00010469,2]
[400959462,1767872890384,-150.0,0.00010469,2]
[400959463,1767872890413,-150.0,0.00010469,2]
[400959464,1767872890443,-150.0,0.00010523,2]
[400959465,1767872890471,-150.0,0.00010523,2]
[400959466,1767872890499,-150.0,0.00010523,2]
[400959467,1767872890530,-300.0,0.00010528,2]
[400959468,1767872890558,-150.0,0.00010528,2]
[400959469,1767872890587,-1296.684376,0.00010529,2]
[400959470,1767872890743,-1221.458524,0.00010529,2]
[400959471,1767872890774,-236.5514,0.00010529,2]
[400959472,1767872891111,-984.907124,0.00010529,2]
[400959473,1767872891132,-236.5514,0.00010529,2]
[400959474,1767872891150,-7083.990152,0.00010529,2]
[400959475,1767872891172,-3709.661224,0.00010529,2]
[400959476,1767872891181,-2500.0,0.00010529,2]
[400959477,1767872891191,-165.76188916,0.00010529,2]
[400959478,1767872891200,-578.20924308,0.0001054,2]
[400959479,1767872891209,-740.56322928,0.0001054,2]
[400959480,1767872891219,-207.8120086,0.0001054,2]
[400959481,1767872891228,-186.26906812,0.00010568,2]
[400959482,1767872891237,-500.0,0.00010568,2]
[400959483,1767872891246,-500.0,0.00010568,2]
[400959484,1767872891255,-500.0,0.00010568,2]
[400959485,1767872891264,-411.73333776,0.00010568,2]
[400959486,1767872891288,-88.26666224,0.00010568,2]
[400959487,1767872891298,-500.0,0.00010568,2]
[400959488,1767872891307,-500.0,0.00010568,2]
[400959489,1767872891316,-500.0,0.00010568,2]
[400959490,1767872891325,-500.0,0.00010568,2]
[400959491,1767872891335,-500.0,0.00010568,2]
[400959492,1767872891344,-500.0,0.00010568,2]
[400959493,1767872891353,-500.0,0.00010568,2]
[400959494,1767872891362,-500.0,0.00010568,2]
[400959495,1767872891371,-500.0,0.00010568,2]
[400959496,1767872891381,-500.0,0.00010568,2]
[400959497,1767872891390,-500.0,0.00010568,2]
[400959498,1767872891399,-611.81142326,0.00010568,2]
[400959499,1767872891408,-500.0,0.00010568,2]
[400959500,1767872891417,-500.0,0.00010568,2]
[400959501,1767872891425,-500.0,0.00010568,2]
[400959502,1767872891434,-500.0,0.00010568,2]
[400959503,1767872891443,-500.0,0.00010568,2]
[400959504,1767872891452,-500.0,0.00010568,2]
[400959505,1767872891461,-500.0,0.00010568,2]
[400959506,1767872891470,-299.9319145,0.00010568,2]
[400959507,1767872908347,-702.0,0.00010567,2]
[400959508,1767872908379,-115.69836643,0.00010568,2]
[400959509,1767872908412,-500.0,0.00010568,2]
[400959510,1767872908445,-500.0,0.00010568,2]
[400959511,1767872908476,-500.0,0.00010568,2]
[400959512,1767872908506,-500.0,0.00010568,2]
[400959513,1767872908537,-500.0,0.00010568,2]
[400959514,1767872908567,-500.0,0.00010568,2]
[400959515,1767872908598,-500.0,0.00010568,2]
[400959516,1767872908628,-500.0,0.00010568,2]
[400959517,1767872908778,-500.0,0.00010568,2]
[400959518,1767872908810,-388.18857674,0.00010568,2]
[400959519,1767872908839,-250.0,0.00010568,2]
[400959520,1767872908867,-500.0,0.00010568,2]
[400959521,1767872909103,-388.18857674,0.00010569,2]
[400959522,1767872909124,-6633.99406832,0.00010569,2]
[400959523,1767872909133,-89.6387782,0.00010569,2]
[400959524,1767872924686,-200.0,0.00010359,2]
[400959525,1767872924714,-200.0,0.00010359,2]
[400959526,1767872924742,-150.0,0.00010359,2]
[400959527,1767872924774,-150.0,0.00010359,2]
[400959528,1767872924806,-150.0,0.00010359,2]
[400959529,1767872924835,-150.0,0.00010359,2]
[400959530,1767872924866,-150.0,0.00010359,2]
[400959531,1767872924897,-150.0,0.00010359,2]
[400959532,1767872924927,-500.0,0.00010359,2]
[400959533,1767872924956,-150.0,0.00010359,2]
[400959534,1767872924985,-150.0,0.00010414,2]
[400959535,1767872925016,-150.0,0.00010414,2]
[400959536,1767872925046,-150.0,0.00010414,2]
[400959537,1767872925075,-150.0,0.00010414,2]
[400959538,1767872925104,-500.0,0.00010414,2]
[400959539,1767872925134,-200.0,0.00010469,2]
[400959540,1767872925163,-200.0,0.00010469,2]
[400959541,1767872925191,-250.0,0.00010469,2]
[400959542,1767872925228,-150.0,0.00010469,2]
[400959543,1767872925258,-500.0,0.00010469,2]
[400959544,1767872925288,-250.0,0.00010523,2]
[400959545,1767872925318,-300.01,0.00010523,2]
[400959546,1767872925969,-199.99,0.00010523,2]
[400959547,1767873011769,-166.7,0.00010025,2]
[400959548,1767873011801,-232.0,0.00010025,2]
[400959549,1767873011830,-250.0,0.00010296,2]
[400959550,1767873011858,-150.0,0.00010359,2]
[400959551,1767873011886,-2500.0,0.00010529,2]
[400959552,1767873011916,-300.0,0.00010567,2]
[400959553,1767873011949,-1200.0,0.00010567,2]
[400959554,1767873012137,-595.13086737,0.00010568,2]
[400959555,1767873012169,-595.13086737,0.00010568,2]
[400959556,1767873012201,-595.13086737,0.00010568,2]
[400959557,1767873012235,-595.13086737,0.00010568,2]
[400959558,1767873012266,-595.13086737,0.00010568,2]
[400959559,1767873012298,-595.13086737,0.00010568,2]
[400959560,1767873012330,-595.13086737,0.00010568,2]
[400959561,1767873012362,-595.13086737,0.00010568,2]
[400959562,1767873012450,-595.13086737,0.00010568,2]
[400959563,1767873012480,-595.13086737,0.00010568,2]
[400959564,1767873012513,-595.13086737,0.00010568,2]
[400959565,1767873012543,-595.13086737,0.00010568,2]
[400959566,1767873012575,-595.13086737,0.00010568,2]
[400959567,1767873012606,-595.13086737,0.00010568,2]
[400959568,1767873012640,-595.13086737,0.00010568,2]
[400959569,1767873012675,-595.13086737,0.00010568,2]
[400959570,1767873013066,-285.39525471,0.00010568,2]
[400959571,1767873013090,-309.73561266,0.00010568,2]
[400959572,1767873013099,-285.39525471,0.00010568,2]
[400959573,1767873013116,-309.73561266,0.00010568,2]
[400959574,1767873013125,-168.18050942,0.00010568,2]
[400959575,1767873015363,-500.0,0.00010359,2]
[400959576,1767873015393,-596.0,0.00010414,2]
[400959577,1767873015426,-426.95035795,0.00010568,2]
[400959578,1767873015460,-595.13086737,0.00010568,2]
[400959579,1767873015493,-595.13086737,0.00010568,2]
[400959580,1767873015524,-595.13086737,0.00010568,2]
[400959581,1767873015556,-595.13086737,0.00010568,2]
[400959582,1767873015589,-595.13086737,0.00010568,2]
[400959583,1767873015620,-407.66974303,0.00010568,2]
[400959584,1767873015901,-187.46112434,0.00010568,2]
[400959585,1767873021959,-207.81200858,0.0001054,2]
[400959586,1767873021989,-595.13086737,0.00010568,2]
[400959587,1767873022022,-595.13086737,0.00010568,2]
[400959588,1767873022054,-595.13086737,0.00010568,2]
[400959589,1767873022087,-595.13086737,0.00010568,2]
[400959590,1767873022118,-595.13086737,0.00010568,2]
[400959591,1767873022148,-595.13086737,0.00010568,2]
[400959592,1767873022179,-595.13086737,0.00010568,2]
[400959593,1767873022209,-595.13086737,0.00010568,2]
[400959594,1767873022283,-595.13086737,0.00010568,2]
[400959595,1767873022315,-595.13086737,0.00010568,2]
[400959596,1767873022346,-595.13086737,0.00010568,2]
[400959597,1767873022377,-595.13086737,0.00010568,2]
[400959598,1767873022409,-595.13086737,0.00010568,2]
[400959599,1767873022440,-595.13086737,0.00010568,2]
[400959600,1767873022472,-595.13086737,0.00010568,2]
[400959601,1767873022504,-595.13086737,0.00010568,2]
[400959602,1767873023051,-62.29210492,0.00010568,2]
[400959603,1767873023065,-477.91612208,0.00010568,2]
[400959604,1767873025206,-54.92264037,0.00010568,2]
[400959605,1767873025239,-595.13086737,0.00010568,2]
[400959606,1767873025270,-595.13086737,0.00010568,2]
[400959607,1767873025301,-595.13086737,0.00010568,2]
[400959608,1767873025333,-595.13086737,0.00010568,2]
[400959609,1767873025366,-595.13086737,0.00010568,2]
[400959610,1767873025399,-595.13086737,0.00010568,2]
[400959611,1767873025432,-595.13086737,0.00010568,2]
[400959612,1767873025463,-596.99065134,0.00010568,2]
[400959613,1767873025814,-364.3512734,0.00010568,2]
[400959615,1767873032389,-202.37576797,0.00010529,2]
[400959616,1767873032398,-232.63937794,0.00010568,2]
[400959617,1767873032407,-15.73485409,0.00010568,2]
[400959618,1767873032418,-581.25579725,0.00010568,2]
[400959619,1767873032428,-392.80297631,0.00010568,2]
[400959620,1767873032485,-204.18767503,0.00010568,2]
[400959621,1767873032495,-596.99065134,0.00010568,2]
[400959622,1767873032504,-596.99065134,0.00010568,2]
[400959623,1767873032513,-219.18097604,0.00010568,2]
[400959624,1767873032531,-310.5,0.00010568,2]
[400959625,1767873032543,-67.3096753,0.00010568,2]
[400959626,1767873032552,-421.1003247,0.00010568,2]
[400959627,1767873032563,-175.89032664,0.00010568,2]
[400959628,1767873032573,-212.35996757,0.00010568,2]
[400959629,1767873032605,-384.63068377,0.00010568,2]
[400959630,1767873032615,-468.43097596,0.00010568,2]
[400959631,1767873032630,-128.55967538,0.00010568,2]
[400959632,1767873032640,-596.99065134,0.00010568,2]
[400959633,1767873032651,-163.67457356,0.00010568,2]
[400959634,1767873032663,-433.31607778,0.00010568,2]
[400959635,1767873032672,-596.99065134,0.00010568,2]
[400959636,1767873032681,-596.99065134,0.00010568,2]
[400959637,1767873032691,-596.99065134,0.00010568,2]
[400959638,1767873032701,-596.99065134,0.00010568,2]
[400959639,1767873032713,-596.99065134,0.00010568,2]
[400959640,1767873032722,-596.99065134,0.00010568,2]
[400959641,1767873032731,-596.99065134,0.00010568,2]
[400959642,1767873032740,-596.99065134,0.00010568,2]
[400959643,1767873032750,-596.99065134,0.00010568,2]
[400959644,1767873032759,-596.99065134,0.00010568,2]
[400959645,1767873032769,-596.99065134,0.00010568,2]
[400959646,1767873032778,-596.99065134,0.00010568,2]
[400959647,1767873032789,-596.99065134,0.00010568,2]
[400959648,1767873032799,-164.424754,0.00010568,2]
[400959649,1767873032809,-432.56589734,0.00010568,2]
[400959650,1767873032819,-97.17590088,0.00010568,2]
[400959651,1767873032831,-499.81475046,0.00010568,2]
[400959652,1767873032840,-149.01667839,0.00010568,2]
[400959653,1767873032866,-447.97397299,0.00010568,2]
[400959654,1767873032875,-500.0,0.00010568,2]
[400959655,1767873032884,-189.06043586,0.00010568,2]
[400959656,1767873035787,464.58,4.984e-05,2]
[400959657,1767873035986,464.58,5.236e-05,2]
[400959658,1767873036190,464.58,5.488e-05,2]
[400959659,1767873036391,464.58,5.74e-05,2]
[400959660,1767873036590,464.58,5.992e-05,2]
[400959661,1767873036992,464.58,6.244e-05,2]
[400959662,1767873037441,464.58,6.496e-05,2]
[400959663,1767873037648,464.58,6.748e-05,2]
[400959664,1767873037844,464.58,7e-05,2]
[400959665,1767873038056,464.58,7.252e-05,2]
[400959666,1767873038203,-694.32956414,0.00010568,2]
[400959667,1767873038214,-3751.36278723,0.00010569,2]
[400959668,1767873038227,-6158.98843457,0.00010569,2]
[400959669,1767873038237,-299.99,0.00010569,2]
[400959670,1767873038247,-1178.68,0.00010569,2]
[400959671,1767873038256,-250.0,0.00010578,2]
[400959672,1767873038267,-154.70701265,0.00010578,2]
[400959673,1767873038276,-250.0,0.00010578,2]
[400959674,1767873038286,-500.0,0.00010578,2]
[400959675,1767873038296,-150.99,0.00010623,2]
[400959676,1767873038305,-150.99,0.00010623,2]
[400959677,1767873038315,-2159.31,0.00010623,2]
[400959678,1767873038325,-9526.64961931,0.00010623,2]
[400959679,1767873038337,-473.34038069,0.00010623,2]
[400959680,1767873038347,-2099.36,0.00010623,2]
[400959681,1767873038356,-151.0,0.00010626,2]
[400959682,1767873038366,-479.62235475,0.00010628,2]
[400959683,1767873038376,-621.30785383,0.00010628,2]
[400959684,1767873038385,-165.40236101,0.00010628,2]
[400959685,1767873038399,-3075.6811333,0.00010629,2]
[400959686,1767873038420,-1469.67784056,0.00010629,2]
[400959687,1767873038440,-2444.83323628,0.00010629,2]
[400959705,1767873038638,464.58,7.504e-05,2]
[400959714,1767873038709,464.58,7.756e-05,2]
[400959728,1767873038850,464.58,8.008e-05,2]
[400959751,1767873039062,464.58,8.26e-05,2]
[400959777,1767873039298,464.58,8.512e-05,2]
[400959795,1767873039450,464.58,8.764e-05,2]
[400959817,1767873039649,464.58,9.016e-05,2]
[400959838,1767873039860,464.58,9.268e-05,2]
[400959845,1767873040068,464.58,9.52e-05,2]
[400959880,1767873040263,464.58,9.772e-05,2]
[400959901,1767873040356,-1410.34959575,0.00010629,2]
[400959930,1767873040610,-3889.325472,0.00010629,2]
[400960290,1767873043971,-485.70213403,0.00010629,2]
[400960294,1767873044001,-758.14934782,0.00010629,2]
[400960297,1767873044013,-705.65580536,0.00010629,2]
[400960299,1767873044023,-264.1780204,0.00010629,2]
[400960303,1767873044053,-4055.04482808,0.00010629,2]
[400960367,1767873044639,-2617.51112008,0.00010629,2]
[400960369,1767873044652,-4280.37655949,0.00010629,2]
[400960371,1767873044664,-16197.240802,0.00010629,2]
[400960524,1767873046059,-640.10999993,0.00010629,2]
[400960526,1767873046070,-2083.3,0.00010629,2]
[400960543,1767873046218,-3557.23150773,0.00010629,2]
[400963606,1767873521458,241.57,0.00015,3]
[400963621,1767873681351,-271.914219,0.00010203,2]
[400963622,1767873681379,-250.0,0.00010229,2]
[400963623,1767873681408,-500.0,0.00010255,2]
[400963624,1767873681437,-500.0,0.00010255,2]
[400963625,1767873681473,-500.0,0.00010255,2]
[400963626,1767873681507,-500.0,0.00010255,2]
[400963627,1767873681539,-297.29776338,0.00010255,2]
[400963628,1767873681569,-234.0,0.00010255,2]
[400963629,1767873681598,-211.56504651,0.00010307,2]
[400963630,1767873681627,-150.0,0.00010342,2]
[400963631,1767873681658,-150.0,0.00010342,2]
[400963632,1767873681693,-150.0,0.00010342,2]
[400963633,1767873681723,-1076.0,0.00010342,2]
[400963634,1767873681755,-148.45594222,0.00010358,2]
[400963635,1767873682145,-121.54405778,0.00010358,2]
[400963636,1767873687495,-300.0,0.00010358,2]
[400963637,1767873687525,-1200.0,0.00010358,2]
[400963638,1767873687556,-150.0,0.00010358,2]
[400963639,1767873687586,-150.0,0.00010359,2]
[400963640,1767873687617,-500.0,0.00010359,2]
[400963641,1767873687647,-150.0,0.00010359,2]
[400963642,1767873687676,-150.0,0.00010359,2]
[400963643,1767873687704,-150.0,0.00010359,2]
[400963644,1767873687732,-150.0,0.00010359,2]
[400963645,1767873687761,-756.0,0.00010359,2]
[400963646,1767873687790,-150.0,0.00010359,2]
[400963647,1767873687819,-500.0,0.00010359,2]
[400963648,1767873687848,-233.66248833,0.00010359,2]
[400963649,1767873687876,-420.68502334,0.00010359,2]
[400963650,1767873688211,-79.31497666,0.00010359,2]
[400963651,1767873693793,-150.0,0.00010359,2]
[400963652,1767873693822,-500.0,0.00010359,2]
[400963653,1767873693850,-150.0,0.00010359,2]
[400963654,1767873693878,-150.6048441,0.00010359,2]
[400963655,1767873693906,-150.0,0.00010359,2]
[400963656,1767873693934,-150.0,0.00010359,2]
[400963657,1767873693961,-150.0,0.00010359,2]
[400963658,1767873693990,-152.08512416,0.00010359,2]
[400963659,1767873694019,-150.0,0.00010359,2]
[400963660,1767873694048,-150.0,0.00010359,2]
[400963661,1767873694078,-150.0,0.00010359,2]
[400963662,1767873694105,-150.0,0.00010397,2]
[400963663,1767873694132,-216.31193931,0.00010397,2]
[400963664,1767873694159,-1076.0,0.00010397,2]
[400963665,1767873694441,-3110.00618486,0.000104,2]
[400963666,1767873699825,-1191.27950314,0.000104,2]
[400963667,1767873699856,-500.0,0.00010413,2]
[400963668,1767873699886,-500.0,0.00010413,2]
[400963669,1767873699915,-500.0,0.00010413,2]
[400963670,1767873699945,-500.0,0.00010413,2]
[400963671,1767873699975,-500.0,0.00010413,2]
[400963672,1767873700010,-500.0,0.00010413,2]
[400963673,1767873700042,-500.0,0.00010413,2]
[400963674,1767873700075,-117.45099372,0.00010413,2]
[400963675,1767873700260,-382.54900628,0.00010413,2]
[400963676,1767873712490,-278.15140077,0.00010313,2]
[400963677,1767873712521,-725.0,0.00010342,2]
[400963678,1767873712554,-725.0,0.00010397,2]
[400963679,1767873712588,-500.0,0.00010413,2]
[400963680,1767873712888,-500.0,0.00010413,2]
[400963681,1767873712922,-500.0,0.00010413,2]
[400963682,1767873712953,-500.0,0.00010413,2]
[400963683,1767873712986,-500.0,0.00010413,2]
[400963684,1767873713033,-500.0,0.00010413,2]
[400963685,1767873713064,-43.70719846,0.00010413,2]
[400963686,1767873713454,-456.29280154,0.00010413,2]
[400963687,1767873724230,156.2559124,0.00012681,7]
[400963688,1767873738027,-716.46345397,0.00010307,2]
[400963689,1767873738057,-300.0,0.00010412,2]
[400963690,1767873738091,-331.16329876,0.00010413,2]
[400963691,1767873738123,-500.0,0.00010413,2]
[400963692,1767873738155,-500.0,0.00010413,2]
[400963693,1767873738186,-500.0,0.00010413,2]
[400963694,1767873738218,-500.0,0.00010413,2]
[400963695,1767873738250,-500.0,0.00010413,2]
[400963696,1767873738283,-500.0,0.00010413,2]
[400963697,1767873738315,-500.0,0.00010413,2]
[400963698,1767873738577,-304.75649454,0.00010413,2]
[400963699,1767873741413,-195.24350546,0.00010413,2]
[400963700,1767873741450,-500.0,0.00010413,2]
[400963701,1767873741487,-500.0,0.00010413,2]
[400963702,1767873741523,-500.0,0.00010413,2]
[400963703,1767873741556,-500.0,0.00010413,2]
[400963704,1767873741589,-500.0,0.00010413,2]
[400963705,1767873741623,-500.0,0.00010413,2]
[400963706,1767873741657,-480.46968879,0.00010413,2]
[400963707,1767873741693,-500.0,0.00010413,2]
[400963708,1767873741725,-500.0,0.00010413,2]
[400963709,1767873741759,-148.5836115,0.00010413,2]
[400963710,1767873742117,-351.4163885,0.00010413,2]
[400963711,1767873751206,-500.0,0.00010413,2]
[400963712,1767873751241,-500.0,0.00010413,2]
[400963713,1767873751275,-500.0,0.00010413,2]
[400963714,1767873751307,-500.0,0.00010413,2]
[400963715,1767873751338,-500.0,0.00010413,2]
[400963716,1767873751373,-500.0,0.00010413,2]
[400963717,1767873751407,-500.0,0.00010413,2]
[400963718,1767873751441,-500.0,0.00010413,2]
[400963719,1767873751474,-500.0,0.00010413,2]
[400963720,1767873751506,-250.0,0.00010413,2]
[400963721,1767873751539,-0.01,0.00010413,2]
[400963722,1767873751927,-499.99,0.00010413,2]
[400963723,1767873763150,500.0,9.626e-05,2]
[400963724,1767873784669,1000.0,9.617e-05,2]
[400963725,1767873801932,-150.0,0.00010412,2]
[400963726,1767873801963,-300.0,0.00010412,2]
[400963727,1767873801995,-500.0,0.00010413,2]
[400963728,1767873802030,-500.0,0.00010413,2]
[400963729,1767873802061,-500.0,0.00010413,2]
[400963730,1767873802094,-500.0,0.00010413,2]
[400963731,1767873802125,-500.0,0.00010413,2]
[400963732,1767873802155,-500.0,0.00010413,2]
[400963733,1767873802185,-500.0,0.00010413,2]
[400963734,1767873802215,-500.0,0.00010413,2]
[400963735,1767873802246,-500.0,0.00010413,2]
[400963736,1767873805682,-500.0,0.00010413,2]
[400963737,1767873805712,-500.0,0.00010413,2]
[400963738,1767873805742,-500.0,0.00010413,2]
[400963739,1767873805777,-500.0,0.00010413,2]
[400963740,1767873805810,-500.0,0.00010413,2]
[400963741,1767873805841,-500.0,0.00010413,2]
[400963742,1767873805873,-500.0,0.00010413,2]
[400963743,1767873805903,-500.0,0.00010413,2]
[400963744,1767873805934,-500.0,0.00010413,2]
[400963745,1767873805965,-500.0,0.00010413,2]
[400963746,1767873808840,-500.0,0.00010413,2]
[400963747,1767873808872,-500.0,0.00010413,2]
[400963748,1767873808903,-500.0,0.00010413,2]
[400963749,1767873808934,-500.0,0.00010413,2]
[400963750,1767873808966,-195.3132327,0.00010413,2]
[400963751,1767873808997,-500.0,0.00010413,2]
[400963752,1767873809027,-500.0,0.00010413,2]
[400963753,1767873809055,-500.0,0.00010413,2]
[400963754,1767873809088,-500.0,0.00010413,2]
[400963755,1767873809120,-500.0,0.00010413,2]
[400963756,1767873809152,-109.3835346,0.00010413,2]
[400963757,1767873809402,-40.6364654,0.00010413,2]
[400963760,1767873948350,164.07,7.701e-05,2]
[400963761,1767874037351,161.48,9.527e-05,2]
[400963762,1767874051512,-4356.86014007,0.00010213,2]
[400963763,1767874051546,-394.19729049,0.00010242,2]
[400963764,1767874051575,-151.0,0.0001031,2]
[400963765,1767874052937,-500.0,0.00010311,2]
[400963766,1767874052966,-432.24933858,0.00010311,2]
[400963767,1767874052997,-500.0,0.00010311,2]
[400963768,1767874053029,-500.0,0.00010311,2]
[400963769,1767874053056,-500.0,0.00010311,2]
[400963770,1767874053089,-500.0,0.00010311,2]
[400963771,1767874053123,-500.0,0.00010311,2]
[400963772,1767874053152,-481.61066553,0.00010311,2]
[400963773,1767874053185,-500.0,0.00010311,2]
[400963774,1767874053216,-500.0,0.00010311,2]
[400963775,1767874053311,-500.0,0.00010311,2]
[400963776,1767874053343,-500.0,0.00010311,2]
[400963777,1767874053376,-500.0,0.00010311,2]
[400963778,1767874053407,-500.0,0.00010311,2]
[400963779,1767874053439,-500.0,0.00010311,2]
[400963780,1767874053471,-500.0,0.00010311,2]
[400963781,1767874053503,-500.0,0.00010311,2]
[400963782,1767874053537,-500.0,0.00010311,2]
[400963783,1767874053569,-500.0,0.00010311,2]
[400963784,1767874053599,-500.0,0.00010311,2]
[400963785,1767874054822,-42.63513066,0.00010311,2]
[400963786,1767874055167,-0.01,0.00010311,2]
[400963787,1767874057653,-457.35486934,0.00010311,2]
[400963788,1767874057684,-500.0,0.00010311,2]
[400963789,1767874057713,-500.0,0.00010311,2]
[400963790,1767874057741,-500.0,0.00010311,2]
[400963791,1767874057773,-500.0,0.00010311,2]
[400963792,1767874057804,-500.0,0.00010311,2]
[400963793,1767874057834,-500.0,0.00010311,2]
[400963794,1767874057864,-500.0,0.00010311,2]
[400963795,1767874057894,-450.0,0.00010311,2]
[400963796,1767874057925,-500.0,0.00010311,2]
[400963797,1767874058057,-500.0,0.00010311,2]
[400963798,1767874058091,-500.0,0.00010311,2]
[400963799,1767874058124,-500.0,0.00010311,2]
[400963800,1767874058154,-500.0,0.00010311,2]
[400963801,1767874058185,-500.0,0.00010311,2]
[400963802,1767874058215,-500.0,0.00010311,2]
[400963803,1767874058244,-500.0,0.00010311,2]
[400963804,1767874058272,-500.0,0.00010311,2]
[400963805,1767874058304,-500.0,0.00010311,2]
[400963806,1767874058336,-500.0,0.00010311,2]
[400963807,1767874058515,-500.0,0.00010311,2]
[400963808,1767874058547,-500.0,0.00010311,2]
[400963809,1767874058577,-500.0,0.00010311,2]
[400963810,1767874058606,-500.0,0.00010311,2]
[400963811,1767874058638,-500.0,0.00010311,2]
[400963812,1767874058668,-500.0,0.00010311,2]
[400963813,1767874058698,-500.0,0.00010311,2]
[400963814,1767874058727,-500.0,0.00010311,2]
[400963815,1767874058758,-500.0,0.00010311,2]
[400963816,1767874058791,-284.27226505,0.00010311,2]
[400963817,1767874059552,-185.31026132,0.00010311,2]
[400963818,1767874059568,-314.68973868,0.00010311,2]
[400963819,1767874059579,-116.77573122,0.00010311,2]
[400963820,1767874064234,-383.22426878,0.00010311,2]
[400963821,1767874064265,-500.0,0.00010311,2]
[400963822,1767874064295,-500.0,0.00010311,2]
[400963823,1767874064323,-300.0,0.00010311,2]
[400963824,1767874064351,-300.0,0.00010311,2]
[400963825,1767874064380,-642.17912702,0.00010312,2]
[400963826,1767874064408,-456.82394068,0.00010312,2]
[400963827,1767874064435,-500.0,0.00010312,2]
[400963828,1767874064462,-500.0,0.00010312,2]
[400963829,1767874064491,-500.0,0.00010312,2]
[400963830,1767874064517,-194.70830695,0.00010312,2]
[400963831,1767874064883,-446.13871314,0.00010312,2]
[400963834,1767874117710,-151.0,0.0001031,2]
[400963835,1767874117741,-500.0,0.00010311,2]
[400963836,1767874117770,-344.63367952,0.00010312,2]
[400963837,1767874117798,-1200.0,0.00010312,2]
[400963838,1767874117827,-300.0,0.00010312,2]
[400963839,1767874117854,-150.0,0.00010312,2]
[400963840,1767874117883,-300.0,0.00010312,2]
[400963841,1767874118031,-4108.74264096,0.00010313,2]
[400963842,1767874124972,-10000.01,0.00010313,2]
[400963843,1767874162639,-500.0,0.00010311,2]
[400963844,1767874162673,-477.89833889,0.00010311,2]
[400963845,1767874162704,-500.0,0.00010312,2]
[400963846,1767874162737,-500.0,0.00010312,2]
[400963847,1767874162770,-500.0,0.00010312,2]
[400963848,1767874162804,-500.0,0.00010312,2]
[400963849,1767874162836,-500.0,0.00010312,2]
[400963850,1767874162867,-423.4272265,0.00010312,2]
[400963851,1767874162897,-300.0,0.00010312,2]
[400963852,1767874162930,-150.0,0.00010312,2]
[400963853,1767874163212,-1297.35886922,0.00010313,2]
[400963854,1767874163253,-10000.01,0.00010313,2]
[400963855,1767874166959,-262.79819366,0.00010242,2]
[400963856,1767874167075,-9474.41361268,0.00010313,2]
[400963857,1767874169974,-300.0,0.00010277,2]
[400963858,1767874170017,-9400.01,0.00010313,2]
[400963859,1767874173626,-10000.01,0.00010313,2]
[400963860,1767874173872,-10000.01,0.00010313,2]
[400963861,1767874177034,-10000.01,0.00010313,2]
[400963862,1767874177210,-2500.0,0.00010213,2]